bitfinex/quotes_BTCUSD_20260308
["timestamp","ask_amount","ask_price","bid_price","bid_amount"]
[1773011238831,0.39288552,66316.0,66299.0,0.07541591]
[1773011239067,0.00156,66315.0,66299.0,0.07541591]
[1773011239374,0.31892992,66315.0,66299.0,0.07541591]
[1773011239601,0.34969971,66315.0,66298.0,0.07541649]
[1773011239997,0.34813971,66315.0,66298.0,0.07541649]
[1773011240128,0.00156,66314.0,66298.0,0.07541649]
[1773011240554,0.07540113,66312.0,66292.0,0.31278881]
[1773011241355,0.31736992,66311.0,66291.0,0.07542501]
[1773011241592,0.03076979,66308.0,66291.0,0.07542501]
[1773011241770,0.31736992,66305.0,66291.0,0.07542501]
[1773011241970,0.31736992,66311.0,66291.0,0.07542501]
[1773011242521,0.00156,66310.0,66292.0,0.31278881]
[1773011242665,0.07540454,66309.0,66293.0,0.07542274]
[1773011243262,0.03076979,66307.0,66293.0,0.07542274]
[1773011243464,0.03076979,66305.0,66292.0,0.07542388]
[1773011243808,0.34969971,66304.0,66292.0,0.07542388]
[1773011244148,0.07540454,66309.0,66292.0,0.07542388]
[1773011244718,0.00156,66308.0,66292.0,0.07542388]
[1773011244950,0.07540454,66309.0,66290.0,0.07542388]
[1773011244951,0.00156,66307.0,66290.0,0.07542388]
[1773011245079,0.06696454,66309.0,66290.0,0.07542388]
[1773011246176,0.31892992,66308.0,66291.0,0.0002]
[1773011246689,0.03076979,66307.0,66291.0,0.0002]
[1773011246933,0.07541023,66304.0,66281.0,0.07543639]
[1773011247143,0.31736992,66299.0,66281.0,0.07543639]
[1773011247342,0.07541023,66304.0,66275.0,0.07564318]
[1773011247343,0.31736992,66295.0,66275.0,0.07564318]
[1773011247478,0.03076979,66292.0,66275.0,0.07564318]
[1773011247664,0.03076979,66290.0,66268.0,0.0002]
[1773011247867,0.18205594,66300.0,66268.0,0.07565091]
[1773011247868,0.34813971,66288.0,66268.0,0.07565091]
[1773011248078,0.00156,66287.0,66268.0,0.07565091]
[1773011248290,0.00156,66287.0,66269.0,0.31278881]
[1773011248491,0.00156,66287.0,66269.0,0.31290747]
[1773011249129,0.00156,66286.0,66270.0,0.07544892]
[1773011249333,0.34813971,66284.0,66270.0,0.07544892]
[1773011249539,0.34813971,66282.0,66270.0,0.07544892]
[1773011249762,0.00156,66281.0,66270.0,0.07544892]
[1773011249900,0.07542274,66293.0,66271.0,0.31278881]
[1773011249901,0.39279266,66293.0,66271.0,0.31278881]
[1773011250100,0.31736992,66291.0,66271.0,0.31278881]
[1773011250348,0.00156,66290.0,66271.0,0.31278881]
[1773011250654,0.00156,66289.0,66274.0,0.31278881]
[1773011250854,0.00156,66288.0,66275.0,0.31278881]
[1773011251081,0.00156,66288.0,66277.0,0.31278881]
[1773011251222,0.00586,66296.0,66278.0,0.00156]
[1773011251419,0.00586,66296.0,66279.0,0.31278881]
[1773011251420,0.00156,66295.0,66279.0,0.31278881]
[1773011251822,0.00586,66296.0,66279.0,0.31278881]
[1773011252035,0.00156,66295.0,66279.0,0.31278881]
[1773011253197,0.00156,66295.0,66281.0,0.29507428]
[1773011253585,0.00586,66296.0,66281.0,0.29507428]
[1773011253760,0.00156,66296.0,66282.0,0.02872781]
[1773011253959,0.00156,66296.0,66283.0,0.29507428]
[1773011254383,0.07562839,66306.0,66283.0,0.29507428]
[1773011254564,0.00156,66305.0,66283.0,0.29507428]
[1773011254947,0.00156,66304.0,66283.0,0.29507428]
[1773011255154,0.07541136,66303.0,66285.0,0.29507428]
[1773011255351,0.00156,66302.0,66285.0,0.29507428]
[1773011255632,0.00156,66301.0,66285.0,0.29507428]
[1773011257188,0.00022001,66306.0,66286.0,0.0754307]
[1773011257404,0.00156,66305.0,66287.0,0.29507428]
[1773011257809,0.29462065,66303.0,66286.0,0.0754307]
[1773011258056,0.00156,66304.0,66286.0,0.0754307]
[1773011258233,0.00156,66304.0,66287.0,0.29507428]
[1773011259366,0.00022001,66306.0,66288.0,0.07542843]
[1773011259574,0.00156,66305.0,66288.0,0.37050271]
[1773011259929,0.29462065,66304.0,66288.0,0.07542843]
[1773011260131,0.00156,66305.0,66289.0,0.29507428]
[1773011260580,0.0756286,66306.0,66289.0,0.29507428]
[1773011260766,0.00156,66305.0,66289.0,0.29507428]
[1773011261332,0.07541023,66304.0,66290.0,0.07542615]
[1773011261529,0.29462065,66303.0,66290.0,0.07542615]
[1773011261873,0.02904597,66302.0,66286.0,0.0754307]
[1773011262075,0.29462065,66299.0,66286.0,0.0754307]
[1773011262259,0.29618065,66298.0,66286.0,0.0754307]
[1773011264114,0.07541819,66297.0,66279.0,0.07543867]
[1773011264255,0.07541819,66297.0,66280.0,0.29507428]
[1773011264785,0.07552788,66305.0,66279.0,0.07543867]
[1773011264985,0.00156,66304.0,66283.0,0.29507428]
[1773011265188,0.00156,66304.0,66286.0,0.02974542]
[1773011265384,0.00156,66304.0,66287.0,0.29507428]
[1773011265592,0.00156,66303.0,66287.0,0.29507428]
[1773011265790,0.00156,66303.0,66287.0,0.3248197]
[1773011265996,0.00011847,66305.0,66288.0,0.02974542]
[1773011266193,0.00144153,66304.0,66290.0,0.07542615]
[1773011266368,0.00156,66303.0,66293.0,0.29507428]
[1773011266718,0.00045001,66320.0,66294.0,0.00156]
[1773011266969,0.000337,66326.0,66299.0,0.02974542]
[1773011267195,0.000337,66326.0,66303.0,0.02974542]
[1773011267359,0.07572234,66326.0,66306.0,0.29507428]
[1773011267561,0.00156,66322.0,66300.0,0.00156]
[1773011267762,0.00156,66321.0,66300.0,0.00156]
[1773011267935,0.00156,66321.0,66301.0,0.29507428]
[1773011268152,0.00156,66320.0,66303.0,0.29507428]
[1773011268764,0.00022001,66311.0,66299.0,0.29507428]
[1773011269745,0.0753909,66322.0,66298.0,0.07697702]
[1773011269946,0.00156,66321.0,66300.0,0.02974542]
[1773011270171,0.00156,66321.0,66301.0,0.29507428]
[1773011270536,0.00156,66320.0,66303.0,0.29507428]
[1773011270743,0.29462065,66319.0,66302.0,0.0754125]
[1773011272222,0.07539203,66320.0,66303.0,0.29507428]
[1773011272404,0.00156,66318.0,66303.0,0.29507428]
[1773011272611,0.07539544,66317.0,66304.0,0.07541023]
[1773011274641,0.29462065,66316.0,66304.0,0.07541023]
[1773011274846,0.32366662,66316.0,66304.0,0.07541023]
[1773011275044,0.02904597,66316.0,66304.0,0.07541023]
[1773011276307,0.00156,66318.0,66304.0,0.07541023]
[1773011276500,0.07695455,66318.0,66305.0,0.29507428]
[1773011276763,0.07695455,66318.0,66306.0,0.07540795]
[1773011277382,0.00156,66318.0,66306.0,0.37048223]
[1773011277531,0.00156,66318.0,66306.0,0.07540795]
[1773011277733,0.00156,66318.0,66307.0,0.29507428]
[1773011278263,0.00022001,66319.0,66307.0,0.29507428]
[1773011278453,0.00156,66319.0,66307.0,0.29507428]
[1773011278655,0.00156,66320.0,66308.0,0.07540568]
[1773011278857,0.00562,66323.0,66311.0,0.29507428]
[1773011279061,0.02904597,66321.0,66308.0,0.07540568]
[1773011279266,0.02904597,66319.0,66308.0,0.07540568]
[1773011279466,0.29618065,66318.0,66306.0,0.07540795]
[1773011279692,0.02904597,66315.0,66305.0,0.07540795]
[1773011279892,0.29462065,66314.0,66305.0,0.07540795]
[1773011281073,0.10444394,66315.0,66302.0,0.07540909]
[1773011281513,0.10444394,66315.0,66300.0,0.07541478]
[1773011281894,0.02904597,66315.0,66300.0,0.07541478]
[1773011282299,0.02904597,66315.0,66300.0,0.37048906]
[1773011282836,0.07539763,66316.0,66302.0,0.0002]
[1773011283040,0.07539772,66317.0,66302.0,0.0756125]
[1773011283821,0.02904597,66315.0,66302.0,0.0756125]
[1773011285276,0.02904597,66312.0,66297.0,0.07541819]
[1773011285485,0.00156,66311.0,66297.0,0.39109671]
[1773011285698,0.07539885,66314.0,66299.0,0.31567852]
[1773011285878,0.00156,66310.0,66299.0,0.31567852]
[1773011286085,0.07539885,66314.0,66299.0,0.31567852]
[1773011286349,0.00156,66313.0,66299.0,0.31567852]
[1773011286557,0.03026153,66313.0,66297.0,0.07541819]
[1773011287203,0.07540113,66312.0,66297.0,0.07541819]
[1773011287369,0.02870153,66309.0,66297.0,0.07537819]
[1773011287807,0.02870153,66307.0,66297.0,0.07537819]
[1773011288251,0.00156,66306.0,66297.0,0.07537819]
[1773011289030,0.07540113,66312.0,66297.0,0.07537819]
[1773011289237,0.15031439,66318.0,66300.0,0.30100003]
[1773011289480,0.00156,66317.0,66302.0,0.30100003]
[1773011291151,0.00156,66316.0,66303.0,0.07541136]
[1773011291376,0.08100899,66323.0,66307.0,0.02698593]
[1773011291573,0.00156,66320.0,66309.0,0.02698593]
[1773011291808,0.00156,66320.0,66310.0,0.30100003]
[1773011292162,0.08100897,66323.0,66310.0,0.30100003]
[1773011292365,0.00156,66322.0,66310.0,0.30100003]
[1773011292570,0.29341426,66322.0,66304.0,0.00156]
[1773011292770,0.31959737,66322.0,66304.0,0.00156]
[1773011293017,0.31959737,66322.0,66303.0,0.07541136]
[1773011293219,0.31959737,66322.0,66304.0,0.00156]
[1773011293784,0.31959737,66322.0,66305.0,0.00156]
[1773011293785,0.0753909,66321.0,66305.0,0.00156]
[1773011294308,0.00156,66322.0,66308.0,0.30100003]
[1773011294636,0.08100897,66323.0,66292.0,0.07542388]
[1773011294637,0.00023,66320.0,66292.0,0.07542388]
[1773011294913,0.00563,66296.0,66239.0,0.11163128]
[1773011295103,0.00563,66296.0,66219.0,0.3866636]
[1773011295104,0.14397732,66246.0,66238.0,0.08334913]
[1773011295315,0.00156,66251.0,66239.0,0.07548423]
[1773011295525,0.00156,66252.0,66240.0,0.30100003]
[1773011295737,0.07547055,66251.0,66240.0,0.30100003]
[1773011295940,0.07547055,66251.0,66240.0,0.34630576]
[1773011296141,0.07547055,66251.0,66235.0,0.00156]
[1773011296142,0.07547055,66251.0,66238.0,0.0754846]
[1773011296291,0.00156,66252.0,66238.0,0.07588031]
[1773011296506,0.07702271,66258.0,66239.0,0.30100003]
[1773011296700,0.02774311,66257.0,66238.0,0.00039571]
[1773011296907,0.01362306,66254.0,66239.0,0.07548423]
[1773011297176,0.01362306,66254.0,66240.0,0.30100003]
[1773011297400,0.01362306,66254.0,66236.0,0.0770471]
[1773011297615,0.03980617,66254.0,66236.0,0.30267869]
[1773011297819,0.07546828,66253.0,66237.0,0.00156]
[1773011298022,0.10165139,66253.0,66237.0,0.00156]
[1773011298224,0.10165139,66253.0,66238.0,0.001]
[1773011298685,0.10165139,66253.0,66237.0,0.00156]
[1773011298895,0.01362306,66254.0,66238.0,0.30100003]
[1773011299122,0.08909103,66254.0,66238.0,0.32798596]
[1773011299338,0.08909103,66254.0,66238.0,0.30100003]
[1773011299559,0.08909103,66254.0,66236.0,0.075606]
[1773011299560,0.0890905,66254.0,66239.0,0.0016]
[1773011299726,0.0890905,66254.0,66241.0,0.07548195]
[1773011299928,0.0890905,66254.0,66242.0,0.30100003]
[1773011300137,0.07702082,66260.0,66242.0,0.32798596]
[1773011300482,0.00563,66269.0,66246.0,0.30100003]
[1773011300679,0.00563,66269.0,66251.0,0.30100003]
[1773011300879,0.08108049,66269.0,66251.0,0.30100003]
[1773011301291,0.08108049,66269.0,66218.0,0.36243557]
[1773011301292,0.29185426,66266.0,66242.0,0.30100003]
[1773011301512,0.02618311,66262.0,66237.0,0.07548637]
[1773011301716,0.02618311,66260.0,66238.0,0.30100003]
[1773011301915,0.02618311,66257.0,66238.0,0.37648502]
[1773011302181,0.02618311,66255.0,66237.0,0.0016]
[1773011302382,0.02618311,66253.0,66237.0,0.0016]
[1773011302751,0.12019543,66243.0,66235.0,0.07548843]
[1773011302963,0.12019543,66240.0,66236.0,0.30100003]
[1773011303162,0.180688,66246.0,66236.0,0.30100003]
[1773011303378,0.14902318,66245.0,66236.0,0.30100003]
[1773011303597,0.14902318,66244.0,66236.0,0.30100003]
[1773011303825,0.07548081,66242.0,66236.0,0.30100003]
[1773011303975,0.14902318,66241.0,66236.0,0.30100003]
[1773011304185,0.25615926,66251.0,66237.0,0.30100003]
[1773011304385,0.2251953,66259.0,66238.0,0.02698593]
[1773011304708,0.07546046,66260.0,66243.0,0.30100003]
[1773011304910,0.0016,66263.0,66245.0,0.30100003]
[1773011305111,0.00563,66269.0,66247.0,0.30100003]
[1773011305290,0.00563,66269.0,66249.0,0.30100003]
[1773011305491,0.00563,66269.0,66252.0,0.30100003]
[1773011305713,0.00563,66269.0,66243.0,0.3866636]
[1773011305714,0.07544028,66278.0,66256.0,0.30100003]
[1773011306055,0.07544028,66278.0,66258.0,0.32798596]
[1773011306839,0.0758355,66278.0,66258.0,0.32798596]
[1773011307619,0.00633,66296.0,66257.0,0.07706372]
[1773011307809,0.00644855,66296.0,66265.0,0.30100003]
[1773011308017,0.08186837,66296.0,66270.0,0.30100003]
[1773011308275,0.08186837,66296.0,66262.0,0.07545803]
[1773011308276,0.29185426,66288.0,66263.0,0.30100003]
[1773011308472,0.02618311,66285.0,66264.0,0.0016]
[1773011308678,0.29185426,66282.0,66264.0,0.0016]
[1773011308886,0.0016,66281.0,66265.0,0.30100003]
[1773011309093,0.0016,66281.0,66266.0,0.0016]
[1773011309297,0.0016,66281.0,66267.0,0.30100003]
[1773011309723,0.02618311,66278.0,66265.0,0.001]
[1773011309943,0.07544322,66275.0,66265.0,0.07645362]
[1773011310135,0.07544322,66275.0,66265.0,0.001]
[1773011310363,0.07544322,66275.0,66256.0,0.37646437]
[1773011310567,0.07544322,66275.0,66256.0,0.07706434]
[1773011310568,0.02618311,66273.0,66256.0,0.07706434]
[1773011310778,0.29185426,66270.0,66256.0,0.07546434]
[1773011310914,0.29185426,66266.0,66241.0,0.07708183]
[1773011311128,0.02618311,66267.0,66242.0,0.00602522]
[1773011311334,0.0016,66269.0,66239.0,0.07548423]
[1773011311335,0.29185426,66256.0,66239.0,0.07548423]
[1773011311549,0.31803737,66254.0,66239.0,0.07560297]
[1773011312037,0.07546828,66253.0,66239.0,0.00011874]
[1773011313339,0.0016,66262.0,66240.0,0.31824853]
[1773011313614,0.0016,66262.0,66242.0,0.31824853]
[1773011313816,0.07545575,66264.0,66244.0,0.31824853]
[1773011314017,0.07545916,66261.0,66245.0,0.07547739]
[1773011314219,0.07545916,66261.0,66246.0,0.31824853]
[1773011314377,0.07709916,66261.0,66246.0,0.31824853]
[1773011314777,0.07709916,66261.0,66245.0,0.07547739]
[1773011315974,0.33086824,66265.0,66248.0,0.31824853]
[1773011315975,0.00164,66265.0,66248.0,0.31824853]
[1773011316181,0.00164,66265.0,66249.0,0.00164]
[1773011316182,0.1490954,66264.0,66249.0,0.00164]
[1773011316418,0.1490954,66263.0,66249.0,0.31988853]
[1773011316573,0.1490954,66262.0,66249.0,0.31824853]
[1773011316775,0.00164,66265.0,66250.0,0.00164]
[1773011316776,0.1490954,66261.0,66250.0,0.00164]
[1773011316978,0.1490954,66260.0,66250.0,0.00164]
[1773011317250,0.1490954,66259.0,66250.0,0.00164]
[1773011317455,0.1490954,66258.0,66250.0,0.00164]
[1773011317652,0.1490954,66257.0,66251.0,0.00164]
[1773011317814,0.1490954,66256.0,66247.0,0.07317511]
[1773011318011,0.1490954,66255.0,66248.0,0.00164]
[1773011318370,0.1490954,66254.0,66249.0,0.07547283]
[1773011318523,0.1490954,66253.0,66249.0,0.07547283]
[1773011318737,0.1490954,66252.0,66249.0,0.07547283]
[1773011318939,0.1490954,66251.0,66249.0,0.07547283]
[1773011319134,0.0754619,66259.0,66249.0,0.07547283]
[1773011319336,0.33086824,66257.0,66239.0,0.07560263]
[1773011319568,0.36652251,66255.0,66239.0,0.07560263]
[1773011319896,0.03565427,66252.0,66239.0,0.00011874]
[1773011320100,0.03565427,66250.0,66238.0,0.0002]
[1773011320241,0.03565427,66250.0,66224.0,0.07593044]
[1773011320242,0.03565427,66245.0,66224.0,0.07593044]
[1773011320434,0.33086824,66242.0,66224.0,0.00043]
[1773011320634,0.03565427,66239.0,66224.0,0.07593051]
[1773011320839,0.33250824,66238.0,66224.0,0.07593051]
[1773011321152,0.00164,66237.0,66224.0,0.07593051]
[1773011322309,0.07548765,66236.0,66224.0,0.07593051]
[1773011323150,0.07548765,66236.0,66225.0,0.00164]
[1773011324162,0.07448765,66236.0,66226.0,0.07549904]
[1773011324381,0.00164,66237.0,66227.0,0.31824853]
[1773011324964,0.00164,66237.0,66226.0,0.07549904]
[1773011325360,0.00164,66240.0,66227.0,0.31824853]
[1773011325714,0.00164,66244.0,66226.0,0.07549904]
[1773011325871,0.03565427,66240.0,66224.0,0.07593018]
[1773011326081,0.0384,66236.0,66215.0,0.00563]
[1773011326279,0.0384,66236.0,66204.0,0.07552413]
[1773011326280,0.03565427,66227.0,66204.0,0.07552413]
[1773011326574,0.18232221,66230.0,66204.0,0.07716413]
[1773011326575,0.33086824,66222.0,66204.0,0.07716413]
[1773011326772,0.36652251,66220.0,66204.0,0.07716413]
[1773011326974,0.36816251,66219.0,66204.0,0.07716413]
[1773011327178,0.00164,66218.0,66204.0,0.07552413]
[1773011327407,0.36652251,66234.0,66205.0,0.31824853]
[1773011327733,0.36816251,66233.0,66205.0,0.31824853]
[1773011327916,0.22494372,66227.0,66205.0,0.31824853]
[1773011328129,0.00164,66226.0,66205.0,0.31824853]
[1773011328433,0.07550018,66225.0,66207.0,0.31824853]
[1773011328717,0.00164,66224.0,66207.0,0.31824853]
[1773011328935,0.22494372,66228.0,66207.0,0.31824853]
[1773011329140,0.00164,66230.0,66211.0,0.31824853]
[1773011329338,0.07549116,66233.0,66213.0,0.31824853]
[1773011329539,0.00164,66231.0,66213.0,0.31824853]
[1773011329726,0.33086824,66230.0,66212.0,0.00164]
[1773011330094,0.00164,66231.0,66212.0,0.00164]
[1773011330313,0.00164,66231.0,66212.0,0.31988853]
[1773011330722,0.2977841,66246.0,66214.0,0.31824853]
[1773011330922,0.07712195,66241.0,66217.0,0.0344647]
[1773011331244,0.51794829,66240.0,66218.0,0.31988853]
[1773011331444,0.14978578,66239.0,66218.0,0.31988853]
[1773011331607,0.14978578,66238.0,66218.0,0.31988853]
[1773011331983,0.00563,66242.0,66213.0,0.07551387]
[1773011331984,0.00563,66242.0,66222.0,0.35271323]
[1773011332157,0.08111115,66242.0,66213.0,0.07551387]
[1773011332295,0.08111115,66242.0,66216.0,0.31824853]
[1773011332546,0.33086824,66240.0,66217.0,0.00164]
[1773011332740,0.33086824,66240.0,66218.0,0.07550816]
[1773011332741,0.07548423,66239.0,66218.0,0.07550816]
[1773011332956,0.40635247,66239.0,66219.0,0.00164]
[1773011333167,0.07712423,66241.0,66219.0,0.00164]
[1773011333168,0.07712212,66241.0,66220.0,0.31824853]
[1773011334065,0.00164,66241.0,66220.0,0.31824853]
[1773011334275,0.00164,66241.0,66222.0,0.31824853]
[1773011334882,0.07712215,66241.0,66223.0,0.07550246]
[1773011335107,0.33086824,66240.0,66223.0,0.07550246]
[1773011335308,0.03565427,66237.0,66221.0,0.07550246]
[1773011335520,0.03565427,66235.0,66222.0,0.07550246]
[1773011335722,0.00164,66234.0,66223.0,0.31824853]
[1773011335914,0.00164,66235.0,66223.0,0.31824853]
[1773011337841,0.00164,66235.0,66224.0,0.39374985]
[1773011338005,0.00164,66235.0,66225.0,0.0016]
[1773011338413,0.00164,66235.0,66226.0,0.31824853]
[1773011338670,0.07548319,66240.0,66226.0,0.31824853]
[1773011339865,0.00563,66242.0,66227.0,0.0754979]
[1773011340130,0.00563,66242.0,66228.0,0.31824853]
[1773011340335,0.0005459,66248.0,66229.0,0.31824853]
[1773011340458,0.00011852,66248.0,66231.0,0.31824853]
[1773011340656,0.00011852,66248.0,66233.0,0.31824853]
[1773011340971,0.00022001,66254.0,66234.0,0.31824853]
[1773011341168,0.00022001,66254.0,66236.0,0.35271323]
[1773011341399,0.07727899,66262.0,66239.0,0.31824853]
[1773011341559,0.36652251,66259.0,66240.0,0.0016]
[1773011341766,0.33086824,66254.0,66234.0,0.00011852]
[1773011341983,0.03565427,66251.0,66235.0,0.0016]
[1773011342160,0.33086824,66248.0,66236.0,0.0016]
[1773011342585,0.33086824,66248.0,66234.0,0.00011852]
[1773011342818,0.33086824,66248.0,66235.0,0.0016]
[1773011342994,0.03565427,66249.0,66234.0,0.00011852]
[1773011343199,0.35516066,66248.0,66234.0,0.00011852]
[1773011343396,0.03565427,66248.0,66234.0,0.00011852]
[1773011343817,0.03725427,66248.0,66234.0,0.00011852]
[1773011344037,0.03725427,66248.0,66234.0,0.07560844]
[1773011344229,0.11272909,66248.0,66234.0,0.07560844]
[1773011344957,0.0016,66248.0,66235.0,0.32948353]
[1773011345266,0.0016,66248.0,66235.0,0.31009353]
[1773011345504,0.0016,66249.0,66235.0,0.31009353]
[1773011345909,0.07546757,66254.0,66235.0,0.31009353]
[1773011346115,0.0016,66253.0,66237.0,0.32948353]
[1773011346339,0.07706831,66253.0,66237.0,0.32948353]
[1773011346576,0.07546831,66253.0,66237.0,0.32948353]
[1773011346789,0.07706831,66253.0,66237.0,0.32948353]
[1773011346994,0.07706831,66253.0,66236.0,0.07548765]
[1773011347209,0.07706831,66253.0,66234.0,0.07560844]
[1773011347432,0.33617167,66252.0,66235.0,0.07708876]
[1773011347634,0.45331472,66251.0,66235.0,0.07708876]
[1773011347852,0.30306913,66251.0,66235.0,0.07708876]
[1773011348270,0.07547169,66250.0,66235.0,0.07708876]
[1773011349558,0.07547169,66250.0,66235.0,0.07548876]
[1773011349559,0.0349523,66248.0,66235.0,0.07548876]
[1773011349761,0.30306913,66247.0,66235.0,0.07548876]
[1773011350012,0.33802143,66247.0,66235.0,0.07548876]
[1773011350401,0.41349764,66247.0,66235.0,0.07548876]
[1773011350786,0.0349523,66246.0,66235.0,0.07548876]
[1773011351679,0.0349523,66245.0,66234.0,0.00031852]
[1773011351879,0.33802143,66244.0,66235.0,0.07548876]
[1773011352104,0.33802143,66244.0,66234.0,0.00031852]
[1773011352279,0.07547967,66243.0,66231.0,0.0754933]
[1773011352617,0.0349523,66239.0,66230.0,0.07549436]
[1773011352780,0.0349523,66237.0,66227.0,0.07729754]
[1773011353382,0.30306913,66237.0,66227.0,0.0002]
[1773011353590,0.0349523,66236.0,66227.0,0.0002]
[1773011353791,0.0349523,66236.0,66227.0,0.07569753]
[1773011354016,0.0016,66240.0,66227.0,0.07569753]
[1773011354206,0.0016,66241.0,66228.0,0.31655517]
[1773011354411,0.00011867,66241.0,66230.0,0.31655517]
[1773011354741,0.07560137,66241.0,66231.0,0.0016]
[1773011355447,0.00011867,66241.0,66231.0,0.0016]
[1773011355830,0.0756012,66241.0,66231.0,0.0016]
[1773011356203,0.0756012,66241.0,66231.0,0.0018]
[1773011356506,0.00011867,66241.0,66232.0,0.0754922]
[1773011356644,0.15036175,66247.0,66233.0,0.35064421]
[1773011356816,0.08090441,66248.0,66233.0,0.35076288]
[1773011357022,0.08090441,66248.0,66233.0,0.00011867]
[1773011357244,0.30306913,66245.0,66231.0,0.0756922]
[1773011357439,0.0349523,66242.0,66231.0,0.0756922]
[1773011357662,0.0349523,66239.0,66231.0,0.0756922]
[1773011357887,0.0349523,66238.0,66231.0,0.0754922]
[1773011358299,0.00011869,66245.0,66231.0,0.0770922]
[1773011358300,0.0016,66240.0,66231.0,0.0770922]
[1773011358650,0.00011869,66245.0,66231.0,0.39364737]
[1773011358871,0.00011869,66245.0,66231.0,0.0770922]
[1773011359105,0.00011869,66245.0,66232.0,0.0016]
[1773011359314,0.03507099,66245.0,66232.0,0.0016]
[1773011360082,0.00011869,66245.0,66232.0,0.31815517]
[1773011360803,0.00011869,66245.0,66233.0,0.07549106]
[1773011361374,0.00543,66248.0,66233.0,0.07549106]
[1773011361581,0.08250402,66248.0,66234.0,0.31655517]
[1773011361988,0.08090402,66248.0,66234.0,0.31655517]
[1773011362359,0.11745632,66248.0,66233.0,0.07560975]
[1773011362945,0.11745632,66248.0,66233.0,0.39216492]
[1773011363645,0.0349523,66247.0,66233.0,0.07560975]
[1773011364462,0.0349523,66247.0,66234.0,0.0016]
[1773011364920,0.11063954,66254.0,66236.0,0.31655517]
[1773011365163,0.03517231,66254.0,66238.0,0.35064421]
[1773011365814,0.30328914,66261.0,66235.0,0.07548878]
[1773011366028,0.03517231,66261.0,66239.0,0.31655517]
[1773011366235,0.03517231,66261.0,66243.0,0.31655517]
[1773011366454,0.0016,66263.0,66247.0,0.31655517]
[1773011366675,0.0016,66262.0,66248.0,0.0016]
[1773011366850,0.07545916,66261.0,66249.0,0.07547283]
[1773011367288,0.30306913,66259.0,66236.0,0.07548765]
[1773011367465,0.30306913,66255.0,66234.0,0.07708882]
[1773011367697,0.18227562,66260.0,66234.0,0.07548882]
[1773011367698,0.30306913,66251.0,66234.0,0.07548882]
[1773011367906,0.0349523,66248.0,66234.0,0.07563722]
[1773011368099,0.18227562,66260.0,66234.0,0.07563722]
[1773011368100,0.30306913,66245.0,66234.0,0.07563722]
[1773011368307,0.0016,66244.0,66234.0,0.07563722]
[1773011368512,0.0349523,66242.0,66227.0,0.0002]
[1773011368734,0.0016,66244.0,66224.0,0.07593072]
[1773011368735,0.0349523,66238.0,66224.0,0.07593072]
[1773011368944,0.07548878,66235.0,66224.0,0.07593072]
[1773011369767,0.07548878,66235.0,66224.0,0.00043]
[1773011369915,0.07548878,66235.0,66224.0,0.07593122]
[1773011371216,0.07548878,66236.0,66224.0,0.07593122]
[1773011377417,0.07548878,66236.0,66220.0,0.0003792]
[1773011377418,0.33113638,66235.0,66220.0,1e-08]
[1773011377619,0.33113638,66231.0,66210.0,0.07571615]
[1773011377827,0.19602305,66236.0,66210.0,0.07571615]
[1773011377828,0.0349523,66227.0,66210.0,0.07571615]
[1773011378026,0.0349523,66223.0,66208.0,0.07551729]
[1773011378343,0.33113638,66220.0,66209.0,0.0755182]
[1773011378522,0.33113638,66220.0,66194.0,0.07045418]
[1773011378523,0.0349523,66217.0,66194.0,0.07045418]
[1773011378723,0.33113638,66214.0,66190.0,0.0016]
[1773011378923,0.0016,66213.0,66192.0,0.31216412]
[1773011379143,0.0016,66213.0,66194.0,0.31216412]
[1773011379520,0.33113638,66211.0,66188.0,0.07554152]
[1773011379720,0.33113638,66207.0,66188.0,0.07593712]
[1773011379920,0.0016,66206.0,66189.0,0.34613406]
[1773011380763,0.0016,66206.0,66203.0,0.0002]
[1773011380994,0.0016,66205.0,66203.0,0.0002]
[1773011381262,0.0016,66210.0,66203.0,0.0002]
[1773011381460,0.07551843,66209.0,66196.0,0.0002]
[1773011381688,0.03242387,66207.0,66196.0,0.0002]
[1773011381886,0.36356025,66207.0,66196.0,0.0002]
[1773011382780,0.07711843,66209.0,66196.0,0.0002]
[1773011382958,0.07551843,66209.0,66196.0,0.0002]
[1773011383360,0.0016,66208.0,66196.0,0.0002]
[1773011383803,0.07712064,66208.0,66196.0,0.0002]
[1773011384006,0.0016,66213.0,66197.0,0.31216412]
[1773011384211,0.0016,66212.0,66200.0,0.03396994]
[1773011384415,0.07550474,66221.0,66201.0,0.0016]
[1773011384416,0.03402387,66214.0,66201.0,0.0016]
[1773011385635,0.03402387,66214.0,66199.0,0.0016]
[1773011385977,0.03402387,66214.0,66197.0,0.31216412]
[1773011385978,0.08093474,66222.0,66201.0,0.03396994]
[1773011386176,0.0016,66221.0,66204.0,0.31216412]
[1773011386373,0.0016,66221.0,66200.0,0.0016]
[1773011386590,0.41207112,66222.0,66202.0,0.03396994]
[1773011386827,0.0016,66221.0,66204.0,0.03396994]
[1773011387027,0.03242273,66225.0,66205.0,0.31216412]
[1773011387230,0.07570879,66236.0,66208.0,0.03396994]
[1773011387495,0.0016,66235.0,66213.0,0.31216412]
[1773011387691,0.33113638,66234.0,66215.0,0.31216412]
[1773011387921,0.07549106,66233.0,66217.0,0.07550931]
[1773011388297,0.07549106,66233.0,66218.0,0.31216412]
[1773011388492,0.0016,66232.0,66218.0,0.34613406]
[1773011388739,0.00022001,66236.0,66221.0,0.03396994]
[1773011388932,0.00022001,66236.0,66217.0,0.07561068]
[1773011388933,0.00022001,66236.0,66224.0,0.31216412]
[1773011389140,0.00022001,66236.0,66226.0,0.34613406]
[1773011389355,0.00022001,66236.0,66226.0,0.31216412]
[1773011389545,0.00022001,66236.0,66227.0,0.03396994]
[1773011389745,0.00022001,66236.0,66228.0,0.31216412]
[1773011390108,0.00022001,66236.0,66229.0,0.07549562]
[1773011390914,0.00022001,66236.0,66228.0,0.07549562]
[1773011391249,0.33113638,66235.0,66222.0,0.0755036]
[1773011392331,0.07548992,66234.0,66217.0,0.07560988]
[1773011392517,0.0016,66233.0,66217.0,0.07720988]
[1773011393499,0.00022001,66236.0,66218.0,0.31216412]
[1773011393770,0.00022001,66236.0,66223.0,0.03396994]
[1773011394072,0.00022001,66236.0,66224.0,0.31216412]
[1773011394276,0.00022001,66236.0,66224.0,0.34613406]
[1773011394678,0.33113638,66235.0,66224.0,0.07570018]
[1773011394856,0.33113638,66235.0,66219.0,0.07550665]
[1773011395281,0.33113638,66235.0,66218.0,0.07550816]
[1773011395612,0.33113638,66233.0,66217.0,0.07580953]
[1773011395790,0.33113638,66231.0,66217.0,0.07580953]
[1773011395950,0.33113638,66229.0,66217.0,0.07580953]
[1773011396151,0.0016,66230.0,66217.0,0.38797365]
[1773011396362,0.07570839,66236.0,66220.0,0.31216412]
[1773011396696,0.07548994,66234.0,66223.0,0.31216412]
[1773011396906,0.0016,66235.0,66226.0,0.03396994]